Cogmind - Beta 16.1 --- EXPLORER MODE // 2026.03.19 @ 18:13:36 Player: burekzfinezt Result: Smashed by cave-in Performance ------------- Evolutions (0) 0 Regions Visited (2) 400 Robots Destroyed (5) 25 Value Destroyed (196) 196 Prototype IDs (2) 40 Alien Tech Used (0) 0 Bonus (0) 0 TOTAL SCORE: 661 Bonus ------- None Cogmind --------- Core Integrity 0/250 Matter 300/300 Energy 125/125 System Corruption 7% Temperature Hot (249) Movement Treading (160) Location -10/Mines Parts ------- > --- POWER (2) -------- Light Ion Engine > --- PROPULSION (2) --- Light Treads Light Treads > --- UTILITY (2) ------ Medium Storage Unit > --- WEAPON (2) ------- (None) > --- INVENTORY (10) --- Ion Engine Medium Laser Light Assault Rifle Peak State ------------ > --- POWER ------------ Light Ion Engine Light Ion Engine > --- PROPULSION ------- Light Treads Light Treads > --- UTILITY ---------- Medium Storage Unit Utility Shielding > --- WEAPON ----------- Medium Laser Light Assault Rifle > --- INVENTORY -------- (None) [Rating: 8] Favorites ----------- Power Light Ion Engine Engine Light Ion Engine Propulsion Light Treads Treads Light Treads Utility Utility Shielding Storage Medium Storage Unit Protection Utility Shielding Weapon Light Assault Rifle Energy Gun Medium Laser Ballistic Gun Light Assault Rifle Special Weapon Mining Laser Build | -11 -10 -10 ------- Run | Yrd Mat Min Slots Evolved 1 | . 1 . Power 1 | . 1 . Propulsion . | . . . Utility . | . . . Weapon . | . . . Parts Attached 11 | 7 2 2 Power 2 | 1 1 . Engine 2 | 1 1 . Core . | . . . Reactor . | . . . Propulsion 2 | 2 . . Treads 2 | 2 . . Leg . | . . . Wheel . | . . . Hover . | . . . Flight . | . . . Utility 3 | 2 1 . Device . | . . . Storage 2 | 1 1 . Processor . | . . . Hackware . | . . . Protection 1 | 1 . . Artifact . | . . . Weapon 4 | 2 . 2 Energy Gun 1 | 1 . . Energy Cannon . | . . . Ballistic Gun 1 | 1 . . Ballistic Cannon . | . . . Launcher . | . . . Special Weapon 2 | . . 2 Impact Weapon . | . . . Slashing Weapon . | . . . Piercing Weapon . | . . . Special Melee Weapon . | . . . Unidentified Prototypes . | . . . Parts Lost 4 | . . 4 Power 1 | . . 1 Propulsion . | . . . Utility 1 | . . 1 Weapon 2 | . . 2 Highest Loss Streak 4 | . . 4 To Critical Strikes . | . . . Average Backups . | . . 3 Power . | . . 1 Propulsion . | . . . Utility . | . . . Weapon . | . . 2 Tool/Special . | . . . Unused Backups 1 | . . 1 Power 1 | . . 1 Propulsion . | . . . Utility . | . . . Weapon . | . . . Tool/Special . | . . . Average Slot Usage (%) 99 | . 100 98 Engine 24 | . 25 24 Treads 25 | . 25 25 Storage 12 | . 12 12 Protection 12 | . 12 12 Energy Gun 10 | . 12 6 Ballistic Gun 10 | . 12 6 Special Weapon 2 | . . 10 Peak Build Rating 8 | 7 8 8 Average Rating 7 | 6 8 7 On Entrance 5 | . 7 8 Avg Prop Armor Cover (%) . | . . . Naked Turns . | . . . Heaviest Build 20 | 17 20 20 Greatest Support 40 | 40 40 40 Greatest Overweight (x) 4 | 4 . . Average Overweight (x) . | . . . Largest Inventory Capacity 10 | 10 10 10 Average Capacity 9 | 9 9 10 Most Carried 3 | 3 3 3 Average Carried . | . . 3 Final Capacity 10 | 10 10 10 Final Carried 3 | 1 3 3 Class Distribution -------------------- 100% | Hacker-Mutant Dominant Class ---------------- Hacker-Mutant | -10/Materials Hacker-Mutant | -10/Mines Resources | -11 -10 -10 ----------- Run | Yrd Mat Min Matter Collected 314 | 213 91 10 Remotely . | . . . Salvage Created 241 | . 139 102 Parts 10 | . 7 3 Haulers Intercepted . | . . . Recyclers Shooed . | . . . Parts Field Recycled . | . . . Retrieved Matter . | . . . Parts Self-Destructed . | . . . Prevented . | . . . Parts Restored . | . . . Kills | -11 -10 -10 ------- Run | Yrd Mat Min Combat Hostiles Destroyed 5 | . 3 2 Guns 5 | . 3 2 Classes Destroyed 1 | . 1 . Grunt 5 | . 3 2 Best Kill Streak 2 | . 1 2 Combat Bots Only 2 | . 1 2 Max Kills in Single Turn 1 | . 1 1 Gunslinging . | . . . Exploded . | . . . Melee . | . . . Uniques/NPCs Destroyed . | . . . Combat | -11 -10 -10 -------- Run | Yrd Mat Min Hostile Shots Fired 24 | . 16 8 Missed 11 | . 8 3 Hits 13 | . 8 5 Projectile 13 | . 8 5 Damage Taken 784 | . 87 697 Core 279 | . 7 272 Absorbed by Shields . | . . . Redirected to Shielding 2 | . 2 . Ignored by Resistances 82 | . 53 29 Core Remaining (%) 100 | 100 . . Volleys Fired 20 | . 8 12 Largest 2 | . 2 2 Hottest 200 | . 70 200 Shots Fired 40 | . 16 24 Gun 28 | . 16 12 Cannon . | . . . Launcher . | . . . Special 12 | . . 12 Kinetic 14 | . 8 6 Thermal 26 | . 8 18 Explosive . | . . . Electromagnetic . | . . . Robot Hit Streak 25 | . 14 25 Robot Miss Streak . | . . . Penetration Max . | . . . Secondary Targets . | . . . Shots Hit Robots 25 | . 14 11 Core Hits 12 | . 7 5 Critical Kills . | . . . Critical Parts Destroyed . | . . . Critical Strikes 3 | . 1 2 Burn 3 | . 1 2 Melee Attacks . | . . . Impact . | . . . Slashing . | . . . Piercing . | . . . Sneak Attacks . | . . . Combat Hostiles . | . . . Follow-up Attacks . | . . . Damage Inflicted 264 | . 150 114 Guns 264 | . 150 114 Cannons . | . . . Explosions . | . . . Melee . | . . . Ramming . | . . . Kinetic 90 | . 50 40 Thermal 174 | . 100 74 Explosive . | . . . Electromagnetic . | . . . Impact . | . . . Slashing . | . . . Piercing . | . . . Highest Corruption 4 | . . 4 Average Corruption 4 | . . 4 Corruption Purged . | . . . Corruption Blocked . | . . . Overload Shots . | . . . Overflow Damage . | . . . Projectiles . | . . . Explosions . | . . . Melee . | . . . Knockbacks . | . . . Impact . | . . . Kinetic . | . . . Secondary . | . . . Self-Inflicted Damage . | . . . Shots . | . . . Rammed . | . . . Targets Rammed . | . . . Kicked . | . . . Crushed . | . . . Highest Temperature 267 | . 142 267 Average Temperature 107 | . 52 130 Received Heat Transfer 99 | . 54 45 Siege Activations . | . . . Martial Activations . | . . . Shielding Activations . | . . . Robots Disrupted . | . . . Combat Hostiles . | . . . Robots Corrupted . | . . . Combat Hostiles . | . . . Parts Fried . | . . . Impact Corruptions . | . . . Robots Melted . | . . . Combat Hostiles . | . . . Parts Melted . | . . . Heat Transferred 740 | . 370 370 Parts Sabotaged . | . . . Parts Stolen . | . . . Parts Stripped . | . . . Power Chain Reactions . | . . . Alert | -11 -10 -10 ------- Run | Yrd Mat Min Maximum Alert Level . | . . . Low Security (%) 100 | 100 100 100 Level 1 . | . . . Level 2 . | . . . Level 3 . | . . . Level 4 . | . . . Level 5 . | . . . High Security . | . . . Max Security . | . . . Peak Influence 50 | . 35 50 Initial . | . . . Average 3 | . 3 12 Influence Increases 148 | . 97 51 Destroy 0b10 Robot/C 100 | . 60 40 Destroy Leader 30 | . 20 10 Successful Hack 2 | . 2 . Destroy Structure 1 | . . 1 Lose Combat Pursuer 15 | . 15 . Influence Decreases 148 | . 97 51 Time Decay 148 | . 97 51 Squads Dispatched 1 | . 1 . Investigation 1 | . 1 . Extermination . | . . . Reinforcement . | . . . Assault . | . . . Garrison . | . . . Intercept . | . . . Searches Triggered . | . . . Construction Impeded . | . . . Haulers Reinforced . | . . . Active Scanning Responses . | . . . Cargo Convoy Interrupts . | . . . Stealth | -11 -10 -10 --------- Run | Yrd Mat Min Distress Signals . | . . . Communications Jammed . | . . . Distress Signals . | . . . Times Spotted 6 | . 4 2 Peak Tracking Total 2 | . 2 2 Tactical Retreats 1 | . 1 . Traps | -11 -10 -10 ------- Run | Yrd Mat Min Traps Triggered 1 | . 1 . Indirectly . | . . . Trap Hack Attempts . | . . . Triggered . | . . . Disarmed . | . . . Reprogrammed . | . . . Reused . | . . . Traps Extracted . | . . . Installed . | . . . Triggered . | . . . Machines | -11 -10 -10 ---------- Run | Yrd Mat Min Machines Disabled . | . . . Max in Single Turn . | . . . Machines Repaired . | . . . Machines Dismantled . | . . . Machines Sabotaged . | . . . Overloaded Fab Kills . | . . . Hacking | -11 -10 -10 --------- Run | Yrd Mat Min Machines Accessed 2 | . 2 . Terminals 2 | . 2 . Fabricators . | . . . Repair Stations . | . . . Recycling Units . | . . . Scanalyzers . | . . . Garrison Access . | . . . Total Hacks 6 | . 6 . Successful 6 | . 6 . Failed . | . . . Catastrophic . | . . . Database Lockouts . | . . . Manual . | . . . Terminals 6 | . 6 . Fabricators . | . . . Repair Stations . | . . . Recycling Units . | . . . Scanalyzers . | . . . Garrison Access . | . . . Terminal Hacks 6 | . 6 . Record 4 | . 4 . Prototype ID Bank 1 | . 1 . Locate Traps 1 | . 1 . Fabricator Hacks . | . . . Repair Station Hacks . | . . . Recycling Unit Hacks . | . . . Scanalyzer . | . . . Garrison Access Hacks . | . . . Unauthorized Hacks . | . . . Terminals . | . . . Fabricators . | . . . Repair Stations . | . . . Recycling Units . | . . . Scanalyzers . | . . . Garrison Access . | . . . Data Cores Recovered . | . . . Used . | . . . Hacking Detections 2 | . 2 . Full Trace Events 1 | . 1 . Feedback Events . | . . . Feedback Blocked . | . . . Robot Schematics Acquired . | . . . Robots Built . | . . . Authchips . | . . . Time . | . . . Total Robot Build Rating . | . . . Part Schematics Acquired . | . . . Parts Built . | . . . Authchips . | . . . Time . | . . . Total Part Build Rating . | . . . Part Studies Acquired . | . . . Parts Repaired . | . . . Time . | . . . Parts Recycled . | . . . Recycled Matter . | . . . Retrieved Matter . | . . . Retrieved Components . | . . . Parts Scanalyzed . | . . . Part Schematics Acquired . | . . . Parts Damaged . | . . . Bothacking | -11 -10 -10 ------------ Run | Yrd Mat Min Used RIF Installer . | . . . Robots Hacked . | . . . Non-combat . | . . . Combat . | . . . Robot Hacks Applied . | . . . Relay Couplers Released . | . . . Fabnet Peak Effective % . | . . . Robots Rewired . | . . . Allies Hacked . | . . . Hacks Repelled . | . . . Allies | -11 -10 -10 -------- Run | Yrd Mat Min Total Allies . | . . . Largest Group . | . . . Highest-Rated Group . | . . . Highest-Rated Ally . | . . . Total Orders . | . . . Ally Attacks . | . . . Total Damage . | . . . Kills . | . . . Allies Corrupted . | . . . Allies Melted . | . . . Intel | -11 -10 -10 ------- Run | Yrd Mat Min Active Infowar (turns) . | . . . Robot Analysis Total . | . . . Derelict Logs Recovered 1 | . . 1 Drone Launches . | . . . Drone Recoveries . | . . . Exploration | -11 -10 -10 ------------- Run | Yrd Mat Min Turns Passed 1039 | 271 623 145 Spaces Moved 589 | 165 371 53 Core 24 | 24 . . Treads 565 | 141 371 53 Legs . | . . . Wheels . | . . . Hover . | . . . Flight . | . . . Fastest Speed 50 | 50 160 160 Average Speed 158 | 156 160 160 Slowest Speed 250 | 250 160 160 Overloaded Moves . | . . . Propulsion Burnouts . | . . . Robots Hopped . | . . . Potential Cave-ins 11 | . . 11 Cave-ins Triggered 2 | . . 2 Exploration Rate (%) 16 | 7 27 14 Regions Visited 2 Branch Regions 1 Pre-discovered Areas . | . . . Known Exits Taken 2 | 1 1 . Unknown Exits Taken . | . . . Scrap Searched . | . . . Spaces Dug 12 | . . 12 Terrain Destroyed 12 | . . 12 Melee . | . . . Projectile 12 | . . 12 AOE . | . . . Terrain Rammed . | . . . Walls Destroyed . | . . . Machines Disabled . | . . . Actions | -11 -10 -10 --------- Run | Yrd Mat Min Total 632 | 179 386 67 Wait . | . . . Move 587 | 164 370 53 Hop . | . . . Pick Up 12 | 8 4 . Fast Attach . | . . . Attach 8 | 7 1 . Detach . | . . . Swap 4 | . 2 2 Drop 1 | . 1 . Fire 20 | . 8 12 Melee . | . . . Ram . | . . . Kick . | . . . Crush . | . . . Escape Stasis . | . . . Rewire . | . . . Trap . | . . . Miscellaneous . | . . . Route ------- -11/Scrapyard -10/Materials (discovered 2 exits: *Min / *Sub) -10/Mines History --------- Turn | Location | Event 5 | -11/Scrapyard | Identified exit to Materials 5 | -11/Scrapyard | Discovered exit to Materials (range 15) 272 | -11/Scrapyard | Entered Materials 272 | -10/Materials | Evolved 1 slot: Power x1 312 | -10/Materials | Build established: Hacker-Mutant 421 | -10/Materials | Identified exit to Subcaves 421 | -10/Materials | Discovered exit to Subcaves (range 9) 793 | -10/Materials | Identified exit to Mines 793 | -10/Materials | Discovered exit to Mines (range 16) 872 | -10/Materials | Derelicts attacked the area 895 | -10/Materials | Entered Mines 954 | -10/Mines | Learned Materials non-interactive machine intel 1039 | -10/Mines | Crushed by falling debris 1039 | -10/Mines | Core integrity fell below 50% 1041 | -10/Mines | Crushed by falling debris 1041 | -10/Mines | Smashed by cave-in Last Messages --------------- GOAL=ESCAPE Something is scanning the area. 00937_ G-34 Mercenary destroyed. 00939_ G-47 Trooper suffers critical hit (Burn). 00948_ G-47 Trooper destroyed. 00954_ Acquired derelict log, extracted data. Data stored: Materials non-interactive machine intel. 00955_ Acquired 10 matter. 01039_ The unstable cave ceiling collapses. 01039_ Crushed by falling debris. [Achievement: Unlikely Earthworm] 01039_ Mining Laser destroyed. 01039_ System corrupted by crushing effect (+3). 01039_ Lgt. Ion Engine destroyed. 01039_ System corrupted by crushing effect (+1). 01041_ The unstable cave ceiling collapses. 01041_ Crushed by falling debris. 01041_ Mining Laser destroyed. 01041_ System corrupted by crushing effect (+3). 01041_ Utility Shielding destroyed. Map ----- +----------------------------------------------------+ | | | | | | | | | | | | | | | | | | | | | | | | | | | | | | | | | | | | | | | | | | | ?????????????????????????????????????????????????? | | ?????????????????????????????????????????????????? | | ?????????????????????######??????????????????????? | | ?????????????????????# # ###????????????????????? | | ?????????????????????# # @ #????????????????????? | | ?????????????????????#### # #????????????????????? | | ???????????????????????#########?????????????????? | | ???????????????????????# #?????????????????? | | ???????????????????????# #?????????????????? | | ???????????????????????# #?????????????????? | | ???????????????????????# """ #?????????????????? | | ???????????????????????# """ #?????????????????? | | ???????????????????????# """ #####??###????????? | | ???????????????????????# %= ## ##?# ????????? | | ???????????????????????#### #### #?# #????????? | | ??????????????????????????#!### ### #????????? | | ???????????????# ###### ## ## #????????? | | ???????????????# # ###??????? | | ????????????????# #??????? | | ????????????????# ####### ### #??????? | | ????????????????#??????????## ##?# ####??? | | ????????????????????????????## #####??# #?? | | ?????????????????????????????## #??????# #?# | | ??????????????????????????????# #??????#### ## | | ??????????????????????????????# #??????#### # | | ??????????????????????????????# #???#### | | ??????????????????????????????# #??## | | ?????????????????????????????? ??# | | ?????????????????????????????? ??# ### | +----------------------------------------------------+ Best States ------------- Heat Dissipation 25 Energy Generation 15 Energy Capacity 150 Matter Stores 300 Matter Capacity 300 Sight Range 16 Terrain Scan Density 10 Resistance: KI 35 Resistance: TH 35 Resistance: EX 35 Resistance: EM 35 Resistance: I 35 Resistance: S 35 Resistance: P 35 Utility Shielding 33 Evasion (%) 50 Recoil Reduction 2 Offensive Hacking 20 Item Schematics ----------------- None Robot Schematics ------------------ None Fabricated ------------ Nothing Repaired ---------- Nothing Studied --------- None Alien Tech Used ----------------- None Achievements -------------- Unlikely Earthworm Challenges ------------ None Game ------ Seed TitaniumMiniChronowheel Manual? 0 Play Time 00:08:54 Cumulative 4.4 hours Start 2026.03.19 @ 18:02:39 End 2026.03.19 @ 18:13:36 Sessions 1 Manual Loads 0 Difficulty Explorer Special Mode None Game No. 15 Rogue 10 Adventurer 0 Explorer 5 Win Type - Total 0 Types 0/0/0/0/0/0/0/0/0/0 Lore% 3 Gallery% 8 Achievement% 6 Wizard Run 0 Options --------- Layout 1 ASCII 0 Keyboard 0 Movement Mouse Keybinds 0 Fullscreen 1 Font 16/Terminus Map View 27x19 Zoom Use 100% Tactical HUD 1 Map Filters NONE Filters NONE Steam 1 RUN: b838996a-7be9-4be4-afe7-c071127df00e